[Event "Live Chess"]
[Site "Chess.com"]
[Date "2024.06.02"]
[Round "-"]
[White "upoe610"]
[Black "Isambard_Thomas"]
[Result "0-1"]
[WhiteElo "2139"]
[BlackElo "2169"]
[TimeControl "300"]
[EndTime "3:02:03 PDT"]
[Termination "Isambard_Thomas won by checkmate"]

1. c4 {[%clk 0:04:58.3]} 1... Nf6 {[%clk 0:04:58.8]} 2. g3 {[%clk 0:04:57.4]}
2... e5 {[%clk 0:04:57.5]} 3. Bg2 {[%clk 0:04:56.6]} 3... Bc5 {[%clk 0:04:57]}
4. Nc3 {[%clk 0:04:55.3]} 4... c6 {[%clk 0:04:52.7]} 5. Nf3 {[%clk 0:04:54.1]}
5... d6 {[%clk 0:04:51.2]} 6. O-O {[%clk 0:04:52.1]} 6... O-O {[%clk 0:04:49.9]}
7. e3 {[%clk 0:04:50.1]} 7... Bg4 {[%clk 0:04:47.3]} 8. a3 {[%clk 0:04:47.1]}
8... a5 {[%clk 0:04:45.6]} 9. d4 {[%clk 0:04:46.1]} 9... exd4 {[%clk 0:04:44.2]}
10. exd4 {[%clk 0:04:46]} 10... Bb6 {[%clk 0:04:42.1]} 11. Be3 {[%clk
0:04:44.7]} 11... Nbd7 {[%clk 0:04:39.2]} 12. h3 {[%clk 0:04:34]} 12... Bh5
{[%clk 0:04:36.8]} 13. b4 {[%clk 0:04:27.4]} 13... Re8 {[%clk 0:04:33.8]} 14. c5
{[%clk 0:04:24.8]} 14... dxc5 {[%clk 0:04:32.6]} 15. dxc5 {[%clk 0:04:24.7]}
15... Bc7 {[%clk 0:04:30.9]} 16. g4 {[%clk 0:04:20.4]} 16... Nxg4 {[%clk
0:04:28.3]} 17. hxg4 {[%clk 0:04:19.1]} 17... Bxg4 {[%clk 0:04:28.2]} 18. Qd4
{[%clk 0:04:13.5]} 18... Be6 {[%clk 0:04:00.5]} 19. Ng5 {[%clk 0:04:10.4]} 19...
Be5 {[%clk 0:03:18.4]} 20. Qd3 {[%clk 0:04:07.2]} 20... Nf8 {[%clk 0:03:13.3]}
21. Qc2 {[%clk 0:03:44.8]} 21... Qf6 {[%clk 0:03:05.4]} 22. Nge4 {[%clk
0:03:29.5]} 22... Qg6 {[%clk 0:02:56.3]} 23. Rad1 {[%clk 0:03:21]} 23... axb4
{[%clk 0:02:50.8]} 24. axb4 {[%clk 0:03:19.4]} 24... Bh3 {[%clk 0:02:47.6]} 25.
f4 {[%clk 0:03:13.7]} 25... Bxc3 {[%clk 0:02:30.2]} 26. f5 {[%clk 0:03:10.7]}
26... Qxg2+ {[%clk 0:02:20.1]} 27. Qxg2 {[%clk 0:03:08.8]} 27... Bxg2 {[%clk
0:02:19.3]} 28. Nxc3 {[%clk 0:03:00.4]} 28... Bxf1 {[%clk 0:02:17.3]} 29. Bd4
{[%clk 0:02:56]} 29... Bc4 {[%clk 0:02:09.9]} 30. Kf2 {[%clk 0:02:49.6]} 30...
Ra3 {[%clk 0:01:51.1]} 31. Rg1 {[%clk 0:02:46.7]} 31... g6 {[%clk 0:01:46.4]}
32. Rg4 {[%clk 0:02:44.3]} 32... Rxc3 {[%clk 0:01:38.5]} 33. Bxc3 {[%clk
0:02:42.3]} 33... Re2+ {[%clk 0:01:34.9]} 34. Kg1 {[%clk 0:02:41.6]} 34... Bd5
{[%clk 0:01:32.3]} 35. fxg6 {[%clk 0:02:36.2]} 35... Nxg6 {[%clk 0:01:29.7]} 36.
Rg3 {[%clk 0:02:29.3]} 36... Kf8 {[%clk 0:01:21.5]} 37. Bf6 {[%clk 0:02:26.6]}
37... Re6 {[%clk 0:01:17.5]} 38. Bd4 {[%clk 0:02:24.4]} 38... Ne5 {[%clk
0:01:14.8]} 39. Ra3 {[%clk 0:02:21.3]} 39... Nf3+ {[%clk 0:01:12.3]} 40. Kf2
{[%clk 0:02:19.1]} 40... Nxd4 {[%clk 0:01:11.8]} 41. Ra8+ {[%clk 0:02:18.4]}
41... Kg7 {[%clk 0:01:10.7]} 42. Ra7 {[%clk 0:02:18.3]} 42... Re7 {[%clk
0:01:09.7]} 43. Kg3 {[%clk 0:02:15]} 43... Nc2 {[%clk 0:01:08.3]} 44. Kf4 {[%clk
0:02:11.9]} 44... Nxb4 {[%clk 0:01:06.6]} 45. Kg5 {[%clk 0:02:11.8]} 45... h6+
{[%clk 0:01:05]} 46. Kh5 {[%clk 0:02:10.5]} 46... Nd3 {[%clk 0:01:00.1]} 47. Ra1
{[%clk 0:02:09.5]} 47... Nxc5 {[%clk 0:00:58.9]} 48. Rg1+ {[%clk 0:02:07.7]}
48... Kh7 {[%clk 0:00:57]} 49. Rf1 {[%clk 0:02:06.9]} 49... Re5+ {[%clk
0:00:54.7]} 50. Kg4 {[%clk 0:02:05.7]} 50... Be6+ {[%clk 0:00:53.8]} 51. Kh4
{[%clk 0:02:03.8]} 51... Ne4 {[%clk 0:00:48.7]} 52. Rb1 {[%clk 0:02:00.9]} 52...
b5 {[%clk 0:00:46.4]} 53. Ra1 {[%clk 0:01:59.6]} 53... Bd5 {[%clk 0:00:45.4]}
54. Ra7 {[%clk 0:01:58.4]} 54... Kg6 {[%clk 0:00:44.2]} 55. Ra1 {[%clk
0:01:55.7]} 55... Rh5+ {[%clk 0:00:43.6]} 56. Kg4 {[%clk 0:01:54.2]} 56... Rg5+
{[%clk 0:00:43.2]} 57. Kf4 {[%clk 0:01:53.6]} 57... h5 {[%clk 0:00:40.7]} 58.
Ra8 {[%clk 0:01:50.9]} 58... Rg4+ {[%clk 0:00:38.8]} 59. Ke5 {[%clk 0:01:49.8]}
59... Rg5+ {[%clk 0:00:33.2]} 60. Kf4 {[%clk 0:01:48.8]} 60... Rf5+ {[%clk
0:00:32.7]} 61. Ke3 {[%clk 0:01:47]} 61... h4 {[%clk 0:00:30.5]} 62. Rg8+ {[%clk
0:01:45.4]} 62... Kf6 {[%clk 0:00:30]} 63. Rh8 {[%clk 0:01:44.5]} 63... Ng5
{[%clk 0:00:28.6]} 64. Rxh4 {[%clk 0:01:42.8]} 64... Rf3+ {[%clk 0:00:28.1]} 65.
Ke2 {[%clk 0:01:41.7]} 65... c5 {[%clk 0:00:26]} 66. Rh6+ {[%clk 0:01:40.7]}
66... Kf5 {[%clk 0:00:24.7]} 67. Rd6 {[%clk 0:01:39.1]} 67... Ke5 {[%clk
0:00:22.5]} 68. Rb6 {[%clk 0:01:37.3]} 68... b4 {[%clk 0:00:21.3]} 69. Rb8
{[%clk 0:01:36.6]} 69... c4 {[%clk 0:00:20.3]} 70. Re8+ {[%clk 0:01:34.7]} 70...
Kf4 {[%clk 0:00:19.8]} 71. Rd8 {[%clk 0:01:32.3]} 71... Be4 {[%clk 0:00:15.1]}
72. Rd4 {[%clk 0:01:30.2]} 72... c3 {[%clk 0:00:14]} 73. Rxb4 {[%clk 0:01:28]}
73... c2 {[%clk 0:00:13.4]} 74. Kd2 {[%clk 0:01:27.4]} 74... Rf2+ {[%clk
0:00:12.1]} 75. Kc1 {[%clk 0:01:26.1]} 75... Rf1+ {[%clk 0:00:11.3]} 76. Kd2
{[%clk 0:01:25.1]} 76... c1=Q+ {[%clk 0:00:10.8]} 77. Ke2 {[%clk 0:01:24.7]}
77... Re1+ {[%clk 0:00:09.4]} 78. Kf2 {[%clk 0:01:23.4]} 78... Qe3# {[%clk
0:00:08.7]} 0-1

[Event "Live Chess"]
[Site "Chess.com"]
[Date "2024.06.02"]
[Round "-"]
[White "JohanKjeldahl"]
[Black "GoldsmanB"]
[Result "1-0"]
[WhiteElo "1805"]
[BlackElo "1102"]
[TimeControl "300"]
[EndTime "3:02:07 PDT"]
[Termination "JohanKjeldahl won by resignation"]

1. e4 {[%clk 0:04:56.5]} 1... e6 {[%clk 0:04:59.4]} 2. d4 {[%clk 0:04:53.1]}
2... d5 {[%clk 0:04:58.9]} 3. Nd2 {[%clk 0:04:51.5]} 3... c5 {[%clk 0:04:57.2]}
4. Ngf3 {[%clk 0:04:49.1]} 4... Nc6 {[%clk 0:04:56.2]} 5. exd5 {[%clk
0:04:47.5]} 5... exd5 {[%clk 0:04:54.8]} 6. Bb5 {[%clk 0:04:44.7]} 6... Bd6
{[%clk 0:04:50.5]} 7. O-O {[%clk 0:04:40.6]} 7... Bd7 {[%clk 0:04:48.1]} 8. Re1+
{[%clk 0:04:38.7]} 8... Nge7 {[%clk 0:04:46.1]} 9. dxc5 {[%clk 0:04:36.4]} 9...
Bxc5 {[%clk 0:04:43.8]} 10. Nb3 {[%clk 0:04:34.8]} 10... Bb6 {[%clk 0:04:36.8]}
11. Qxd5 {[%clk 0:04:33.4]} 11... O-O {[%clk 0:04:28.6]} 12. Qg5 {[%clk
0:04:27.7]} 12... f6 {[%clk 0:04:16.5]} 13. Qg3 {[%clk 0:04:23.4]} 13... Nf5
{[%clk 0:04:15]} 14. Bc4+ {[%clk 0:04:15.9]} 14... Kh8 {[%clk 0:04:11]} 15. Qf4
{[%clk 0:04:14.7]} 15... g5 {[%clk 0:04:05.4]} 16. Qd2 {[%clk 0:04:09.7]} 16...
Bc8 {[%clk 0:03:51.1]} 17. c3 {[%clk 0:04:06.9]} 17... Qxd2 {[%clk 0:03:48.1]}
18. Bxd2 {[%clk 0:04:05.7]} 18... Bd7 {[%clk 0:03:45]} 19. Bxg5 {[%clk 0:03:57]}
19... h6 {[%clk 0:03:40.4]} 20. Bd2 {[%clk 0:03:52]} 20... Rae8 {[%clk
0:03:35.2]} 21. Rad1 {[%clk 0:03:50.1]} 21... Na5 {[%clk 0:03:30.2]} 22. Nxa5
{[%clk 0:03:47.7]} 22... Bxa5 {[%clk 0:03:30.1]} 23. Bf4 {[%clk 0:03:42.1]}
23... Bc6 {[%clk 0:03:23.6]} 24. Rxe8 {[%clk 0:03:32.8]} 24... Rxe8 {[%clk
0:03:20.8]} 25. Bd3 {[%clk 0:03:23.6]} 25... Rd8 {[%clk 0:03:13.9]} 26. Bc2
{[%clk 0:03:14.5]} 26... Re8 {[%clk 0:03:04.5]} 27. Bxf5 {[%clk 0:03:09]} 1-0

[Event "Live Chess"]
[Site "Chess.com"]
[Date "2024.06.02"]
[Round "-"]
[White "Thebigsqueeze"]
[Black "wadsy27"]
[Result "0-1"]
[WhiteElo "2269"]
[BlackElo "2573"]
[TimeControl "300"]
[EndTime "3:02:20 PDT"]
[Termination "wadsy27 won by resignation"]

1. d4 {[%clk 0:04:59.2]} 1... d5 {[%clk 0:04:57.2]} 2. Nf3 {[%clk 0:04:57.3]}
2... Nf6 {[%clk 0:04:55.3]} 3. g3 {[%clk 0:04:56.3]} 3... c6 {[%clk 0:04:54.6]}
4. Bg2 {[%clk 0:04:55.4]} 4... Bf5 {[%clk 0:04:54.2]} 5. O-O {[%clk 0:04:54.6]}
5... h6 {[%clk 0:04:53.8]} 6. b3 {[%clk 0:04:52.2]} 6... e6 {[%clk 0:04:53.4]}
7. c4 {[%clk 0:04:51.3]} 7... Be7 {[%clk 0:04:52]} 8. Nc3 {[%clk 0:04:50.1]}
8... O-O {[%clk 0:04:51.3]} 9. Bb2 {[%clk 0:04:49.1]} 9... Nbd7 {[%clk
0:04:50.3]} 10. Ne5 {[%clk 0:04:47.1]} 10... Nxe5 {[%clk 0:04:47.3]} 11. dxe5
{[%clk 0:04:46.1]} 11... Nd7 {[%clk 0:04:45.1]} 12. e4 {[%clk 0:04:44.9]} 12...
dxe4 {[%clk 0:04:44.3]} 13. Nxe4 {[%clk 0:04:43.6]} 13... Nc5 {[%clk 0:04:43.6]}
14. Nd6 {[%clk 0:04:34]} 14... Bxd6 {[%clk 0:04:42.9]} 15. exd6 {[%clk
0:04:32.3]} 15... Nd3 {[%clk 0:04:42]} 16. Ba3 {[%clk 0:04:20.9]} 16... a5
{[%clk 0:04:37.9]} 17. Qe2 {[%clk 0:04:06.2]} 17... Nb4 {[%clk 0:04:28.8]} 18.
Rad1 {[%clk 0:03:50.2]} 18... Qd7 {[%clk 0:04:18.8]} 19. Rd2 {[%clk 0:03:30.7]}
19... c5 {[%clk 0:04:14.4]} 20. Rfd1 {[%clk 0:03:26.4]} 20... Ra6 {[%clk
0:04:10.7]} 21. Qe5 {[%clk 0:03:10.6]} 21... Rc8 {[%clk 0:04:07.8]} 22. Bb2
{[%clk 0:02:47.9]} 22... f6 {[%clk 0:04:05.1]} 23. Qe2 {[%clk 0:02:43.2]} 23...
a4 {[%clk 0:03:49.9]} 24. Qf3 {[%clk 0:02:21.4]} 24... Nc6 {[%clk 0:03:33.2]}
25. g4 {[%clk 0:02:11]} 25... Bg6 {[%clk 0:03:29.7]} 26. h4 {[%clk 0:02:02.3]}
26... axb3 {[%clk 0:03:21.2]} 27. axb3 {[%clk 0:02:00.4]} 27... Rb6 {[%clk
0:03:20.4]} 28. Qe3 {[%clk 0:01:50]} 28... Na5 {[%clk 0:03:10.9]} 29. g5 {[%clk
0:01:39.5]} 29... Rxb3 {[%clk 0:03:04.9]} 30. Qf4 {[%clk 0:01:37.8]} 30... e5
{[%clk 0:02:41.1]} 31. Qh2 {[%clk 0:01:19.2]} 31... Nxc4 {[%clk 0:02:35]} 32.
Bd5+ {[%clk 0:01:16.6]} 32... Bf7 {[%clk 0:02:34.2]} 33. Bxc4 {[%clk 0:01:15.1]}
33... Bxc4 {[%clk 0:02:32.3]} 34. gxf6 {[%clk 0:01:13.9]} 34... Qg4+ {[%clk
0:02:29.3]} 35. Qg2 {[%clk 0:01:08.1]} 35... Qxg2+ {[%clk 0:02:23]} 36. Kxg2
{[%clk 0:01:06]} 36... gxf6 {[%clk 0:02:21.7]} 37. f4 {[%clk 0:01:03.4]} 37...
Kf7 {[%clk 0:01:48.4]} 38. fxe5 {[%clk 0:01:01.9]} 38... fxe5 {[%clk 0:01:45.4]}
39. d7 {[%clk 0:00:57]} 39... Rd8 {[%clk 0:01:44.5]} 40. Bxe5 {[%clk 0:00:55.3]}
40... Be6 {[%clk 0:01:36.7]} 41. Bc7 {[%clk 0:00:51.1]} 41... Rxd7 {[%clk
0:01:29.8]} 42. Rxd7+ {[%clk 0:00:48.3]} 42... Bxd7 {[%clk 0:01:29.7]} 43. Rxd7+
{[%clk 0:00:46.7]} 43... Kg6 {[%clk 0:01:29.3]} 44. Bf4 {[%clk 0:00:32.8]} 44...
c4 {[%clk 0:01:22.8]} 45. Rd6+ {[%clk 0:00:30.7]} 45... Kh5 {[%clk 0:01:22.2]}
46. Rxh6+ {[%clk 0:00:28.9]} 46... Kg4 {[%clk 0:01:21.6]} 47. Bg5 {[%clk
0:00:28.2]} 47... Rb2+ {[%clk 0:01:20.1]} 48. Kf1 {[%clk 0:00:25.8]} 48... c3
{[%clk 0:01:19.2]} 49. Ke1 {[%clk 0:00:25.1]} 49... b5 {[%clk 0:01:17.2]} 50.
Rc6 {[%clk 0:00:22.7]} 50... b4 {[%clk 0:01:16]} 51. Rc4+ {[%clk 0:00:21.7]}
51... Kf3 {[%clk 0:01:15.3]} 52. h5 {[%clk 0:00:19.9]} 52... Rb1+ {[%clk
0:01:13.9]} 0-1

[Event "Live Chess"]
[Site "Chess.com"]
[Date "2024.06.02"]
[Round "-"]
[White "Ninifu"]
[Black "defenderalist"]
[Result "1-0"]
[WhiteElo "2012"]
[BlackElo "1521"]
[TimeControl "300"]
[EndTime "3:02:27 PDT"]
[Termination "Ninifu won by resignation"]

1. d4 {[%clk 0:04:56.2]} 1... Nf6 {[%clk 0:04:58.4]} 2. c4 {[%clk 0:04:54.8]}
2... e6 {[%clk 0:04:58.3]} 3. Nc3 {[%clk 0:04:52.8]} 3... d5 {[%clk 0:04:58.2]}
4. cxd5 {[%clk 0:04:51.2]} 4... exd5 {[%clk 0:04:56.1]} 5. Bg5 {[%clk
0:04:49.5]} 5... Be7 {[%clk 0:04:52.1]} 6. e3 {[%clk 0:04:48.7]} 6... c6 {[%clk
0:04:51.2]} 7. Bd3 {[%clk 0:04:48]} 7... Be6 {[%clk 0:04:46.9]} 8. Nge2 {[%clk
0:04:47.1]} 8... h6 {[%clk 0:04:45.9]} 9. Bf4 {[%clk 0:04:39.5]} 9... Nbd7
{[%clk 0:04:42.8]} 10. h3 {[%clk 0:04:38.4]} 10... Nb6 {[%clk 0:04:39.4]} 11. b3
{[%clk 0:04:32.6]} 11... Qd7 {[%clk 0:04:38.2]} 12. O-O {[%clk 0:04:31.2]} 12...
g5 {[%clk 0:04:31.9]} 13. Bh2 {[%clk 0:04:28.3]} 13... g4 {[%clk 0:04:00.6]} 14.
h4 {[%clk 0:04:22.3]} 14... Ne4 {[%clk 0:03:56.1]} 15. Nxe4 {[%clk 0:04:09.9]}
15... dxe4 {[%clk 0:03:54.8]} 16. Bxe4 {[%clk 0:04:09]} 16... Bxh4 {[%clk
0:03:53.8]} 17. Nf4 {[%clk 0:03:57.9]} 17... f5 {[%clk 0:03:46.1]} 18. Bd3
{[%clk 0:03:31.2]} 18... O-O-O {[%clk 0:03:41.8]} 19. Ng6 {[%clk 0:03:20.4]}
19... Be7 {[%clk 0:03:20.6]} 20. Nxh8 {[%clk 0:03:17.3]} 20... Rxh8 {[%clk
0:03:20.5]} 21. a4 {[%clk 0:02:52.8]} 21... h5 {[%clk 0:03:19.3]} 22. a5 {[%clk
0:02:43.6]} 22... Nd5 {[%clk 0:03:14.9]} 23. a6 {[%clk 0:02:16.2]} 23... b6
{[%clk 0:03:13.8]} 24. Qc1 {[%clk 0:02:02.2]} 24... h4 {[%clk 0:03:09.4]} 25.
Be5 {[%clk 0:01:58.8]} 25... Bf6 {[%clk 0:02:59]} 26. Bb5 {[%clk 0:01:47.3]}
26... Nb4 {[%clk 0:01:01.1]} 27. Bxf6 {[%clk 0:01:43]} 27... Bd5 {[%clk
0:00:55.2]} 28. Bxh8 {[%clk 0:01:33.9]} 28... g3 {[%clk 0:00:53.2]} 29. f3
{[%clk 0:01:28.8]} 29... Qh7 {[%clk 0:00:46.9]} 30. e4 {[%clk 0:01:13.2]} 30...
h3 {[%clk 0:00:38.5]} 31. Qg5 {[%clk 0:00:42.5]} 31... hxg2 {[%clk 0:00:22.4]}
32. Qxf5+ {[%clk 0:00:41.6]} 1-0

[Event "Live Chess"]
[Site "Chess.com"]
[Date "2024.06.02"]
[Round "-"]
[White "Ferrarifan27"]
[Black "EnnisZ"]
[Result "1-0"]
[WhiteElo "2138"]
[BlackElo "877"]
[TimeControl "300"]
[EndTime "3:02:55 PDT"]
[Termination "Ferrarifan27 won by resignation"]

1. e4 {[%clk 0:04:57.5]} 1... c5 {[%clk 0:04:58.1]} 2. Nf3 {[%clk 0:04:55.2]}
2... Nc6 {[%clk 0:04:50.9]} 3. b4 {[%clk 0:04:53.7]} 3... cxb4 {[%clk
0:04:47.5]} 4. d4 {[%clk 0:04:51.7]} 4... d5 {[%clk 0:04:43.4]} 5. exd5 {[%clk
0:04:50.5]} 5... Qxd5 {[%clk 0:04:40.4]} 6. c4 {[%clk 0:04:47.6]} 6... Qe4+
{[%clk 0:04:31.7]} 7. Be2 {[%clk 0:04:46]} 7... Bg4 {[%clk 0:04:15.6]} 8. O-O
{[%clk 0:04:43.5]} 8... O-O-O {[%clk 0:04:09.8]} 9. d5 {[%clk 0:04:40.8]} 9...
e6 {[%clk 0:03:58.6]} 10. Nbd2 {[%clk 0:04:39.3]} 10... Qg6 {[%clk 0:03:34.7]}
11. dxc6 {[%clk 0:04:35.1]} 11... bxc6 {[%clk 0:03:32]} 12. Ne5 {[%clk
0:04:28.9]} 12... Bxe2 {[%clk 0:03:24.3]} 13. Nxg6 {[%clk 0:04:27.8]} 13... Bxd1
{[%clk 0:03:18.6]} 14. Nxh8 {[%clk 0:04:26.1]} 14... h5 {[%clk 0:03:12.9]} 15.
Rxd1 {[%clk 0:04:19.4]} 1-0

[Event "Live Chess"]
[Site "Chess.com"]
[Date "2024.06.02"]
[Round "-"]
[White "WorcesterYork"]
[Black "Duke_of_Bebington"]
[Result "1-0"]
[WhiteElo "2477"]
[BlackElo "1637"]
[TimeControl "300"]
[EndTime "3:03:26 PDT"]
[Termination "WorcesterYork won by resignation"]

1. e4 {[%clk 0:04:57.8]} 1... e5 {[%clk 0:04:58.2]} 2. Nc3 {[%clk 0:04:56.3]}
2... Nc6 {[%clk 0:04:52.6]} 3. Bc4 {[%clk 0:04:55]} 3... Nf6 {[%clk 0:04:51.2]}
4. d3 {[%clk 0:04:54.1]} 4... Be7 {[%clk 0:04:47]} 5. Nf3 {[%clk 0:04:51.4]}
5... O-O {[%clk 0:04:42.5]} 6. h3 {[%clk 0:04:49.6]} 6... d6 {[%clk 0:04:37.8]}
7. a4 {[%clk 0:04:48.7]} 7... Be6 {[%clk 0:04:36]} 8. O-O {[%clk 0:04:44]} 8...
Bxc4 {[%clk 0:04:34.5]} 9. dxc4 {[%clk 0:04:43.9]} 9... Nd4 {[%clk 0:04:30.5]}
10. Nxd4 {[%clk 0:04:42.5]} 10... exd4 {[%clk 0:04:29.6]} 11. Qxd4 {[%clk
0:04:42.4]} 11... Re8 {[%clk 0:04:17.6]} 12. a5 {[%clk 0:04:40.2]} 12... a6
{[%clk 0:04:15.3]} 13. Be3 {[%clk 0:04:34.6]} 13... Nd7 {[%clk 0:04:13.4]} 14.
Nd5 {[%clk 0:04:32.5]} 14... Bf6 {[%clk 0:04:06.7]} 15. Nxf6+ {[%clk 0:04:31.4]}
15... Nxf6 {[%clk 0:04:06.6]} 16. f3 {[%clk 0:04:30.5]} 16... Qd7 {[%clk
0:03:58.2]} 17. b4 {[%clk 0:04:27.3]} 17... Qc6 {[%clk 0:03:33.4]} 18. Qd3
{[%clk 0:04:20.1]} 18... Rad8 {[%clk 0:03:26.5]} 19. Rfd1 {[%clk 0:04:17.6]}
19... h6 {[%clk 0:03:23.1]} 20. Bd4 {[%clk 0:04:15.5]} 20... Nh5 {[%clk
0:03:07.5]} 21. b5 {[%clk 0:04:05.3]} 21... axb5 {[%clk 0:03:01.3]} 22. cxb5
{[%clk 0:04:05.2]} 22... Qd7 {[%clk 0:02:54.5]} 23. a6 {[%clk 0:04:03.2]} 23...
Nf4 {[%clk 0:02:49.8]} 24. Qd2 {[%clk 0:04:02.1]} 24... Ne6 {[%clk 0:02:40.2]}
25. Bf2 {[%clk 0:03:59.6]} 25... Qxb5 {[%clk 0:02:26]} 26. Rdb1 {[%clk 0:03:54]}
26... Qc6 {[%clk 0:02:23.4]} 27. axb7 {[%clk 0:03:52]} 27... Rb8 {[%clk
0:02:21.5]} 28. Qd5 {[%clk 0:03:50.8]} 28... Qxd5 {[%clk 0:02:15.8]} 29. exd5
{[%clk 0:03:49.6]} 29... Nd8 {[%clk 0:02:14.4]} 30. Ra8 {[%clk 0:03:39.4]} 30...
Nxb7 {[%clk 0:02:09.9]} 31. Rxb8 {[%clk 0:03:38]} 31... Rxb8 {[%clk 0:02:08.9]}
32. Ba7 {[%clk 0:03:37]} 32... Ra8 {[%clk 0:02:01.8]} 33. Rxb7 {[%clk
0:03:35.8]} 33... Kf8 {[%clk 0:02:01.4]} 34. Rb8+ {[%clk 0:03:34.9]} 34... Rxb8
{[%clk 0:02:00.1]} 35. Bxb8 {[%clk 0:03:34.8]} 1-0

[Event "Live Chess"]
[Site "Chess.com"]
[Date "2024.06.02"]
[Round "-"]
[White "TigerTank70"]
[Black "ameetghasi100"]
[Result "0-1"]
[WhiteElo "2221"]
[BlackElo "2773"]
[TimeControl "300"]
[EndTime "3:03:33 PDT"]
[Termination "ameetghasi100 won by resignation"]

1. e4 {[%clk 0:04:56.6]} 1... c5 {[%clk 0:04:59.9]} 2. d4 {[%clk 0:04:55.3]}
2... cxd4 {[%clk 0:04:43.9]} 3. c3 {[%clk 0:04:54.2]} 3... d6 {[%clk 0:04:43.8]}
4. Nf3 {[%clk 0:04:51.5]} 4... Nd7 {[%clk 0:04:43.7]} 5. cxd4 {[%clk 0:04:49.2]}
5... g6 {[%clk 0:04:43.6]} 6. Bc4 {[%clk 0:04:45.8]} 6... Bg7 {[%clk 0:04:43.5]}
7. Nc3 {[%clk 0:04:43.8]} 7... Nh6 {[%clk 0:04:42.2]} 8. h3 {[%clk 0:04:39.3]}
8... e6 {[%clk 0:04:40.8]} 9. O-O {[%clk 0:04:37.9]} 9... a6 {[%clk 0:04:37.1]}
10. Bg5 {[%clk 0:04:36.5]} 10... Qa5 {[%clk 0:04:33]} 11. Qd2 {[%clk 0:04:34.8]}
11... Ng8 {[%clk 0:04:30.3]} 12. Nd5 {[%clk 0:04:15.9]} 12... Qxd2 {[%clk
0:04:25.1]} 13. Nc7+ {[%clk 0:04:14.9]} 13... Kf8 {[%clk 0:04:24.2]} 14. Nxd2
{[%clk 0:04:13.4]} 14... Rb8 {[%clk 0:04:23.9]} 15. e5 {[%clk 0:03:45.2]} 15...
dxe5 {[%clk 0:04:13.6]} 16. Bxe6 {[%clk 0:03:35.7]} 16... fxe6 {[%clk
0:04:11.3]} 17. Nxe6+ {[%clk 0:03:34.6]} 17... Kf7 {[%clk 0:04:10.9]} 18. d5
{[%clk 0:03:24.2]} 18... Ngf6 {[%clk 0:04:08.3]} 0-1

[Event "Live Chess"]
[Site "Chess.com"]
[Date "2024.06.02"]
[Round "-"]
[White "Cimon"]
[Black "defenderalist"]
[Result "1-0"]
[WhiteElo "1818"]
[BlackElo "1518"]
[TimeControl "300"]
[EndTime "3:03:36 PDT"]
[Termination "Cimon won by checkmate"]

1. d4 {[%clk 0:04:56]} 1... Nf6 {[%clk 0:04:58.3]} 2. Nf3 {[%clk 0:04:54.2]}
2... e6 {[%clk 0:04:58.2]} 3. Bf4 {[%clk 0:04:50.6]} 3... d5 {[%clk 0:04:56.8]}
4. e3 {[%clk 0:04:49]} 4... c5 {[%clk 0:04:55.8]} 5. c3 {[%clk 0:04:46.4]} 5...
Nc6 {[%clk 0:04:53.2]} 6. Bd3 {[%clk 0:04:44.4]} 6... Bd6 {[%clk 0:04:51.6]} 7.
Bg3 {[%clk 0:04:42.3]} 7... Bxg3 {[%clk 0:04:49.1]} 8. hxg3 {[%clk 0:04:40.8]}
8... cxd4 {[%clk 0:04:47]} 9. exd4 {[%clk 0:04:35]} 9... O-O {[%clk 0:04:44.9]}
10. Nbd2 {[%clk 0:04:31.7]} 10... a6 {[%clk 0:04:43.9]} 11. Qc2 {[%clk 0:04:27]}
11... b5 {[%clk 0:04:43.2]} 12. Bxh7+ {[%clk 0:04:24.1]} 12... Nxh7 {[%clk
0:04:38.5]} 13. Qxh7# {[%clk 0:04:22.1]} 1-0